Cogmind - Beta 13 X2 @@@ ROGUE MODE // 2023.12.21 @ 13:19:17 Player: AI-57H Result: Destroyed by as-84736 with Assembled Focal Cannon Performance ------------- Evolutions (3) 1500 Regions Visited (10) 2000 Robots Destroyed (85) 425 Value Destroyed (2778) 2778 Prototype IDs (50) 1000 Alien Tech Used (0) 0 Bonus (1807) 1807 TOTAL SCORE: 9510 Bonus ------- High Alert Combat Kills 360 Follower Combat Kills 255 Met Imprinter 300 Destroyed Z-Imprinter 1000 Friendly Fire -108 Cogmind --------- Core Integrity 0/700 Matter 194/300 Energy 100/100 System Corruption 0% Temperature Cool (6) Movement Hovering (130) Ox1 Location -7/Deep Caves Parts ------- > --- POWER (1) -------- Zionite Light DM Reactor > --- PROPULSION (4) --- Zionite Glidesys I > --- UTILITY (6) ------ Melee Analysis Suite Layered Light Armor Plating > --- WEAPON (2) ------- Ripper Makeshift Sword > --- INVENTORY (5) ---- Experimental Sensor Array Core Analyzer Improved Shield Generator Trap Reconfigurator Heavy Rocket Launcher Peak State ------------ > --- POWER ------------ Zionite Light DM Reactor > --- PROPULSION ------- Makeshift Leg Zionite Glidesys I Zionite Glidesys II Zionite Glidesys II > --- UTILITY ---------- Large Storage Unit Experimental Sensor Array Improved Signal Interpreter Melee Analysis Suite Zionite Weapon Casing Zionite Light Carapace > --- WEAPON ----------- Zionite Laser-S Zionite Laser-M > --- INVENTORY -------- Zionite Light DM Reactor Experimental Heat Sink Zionite Biocell Zionite Metafield Generator Trap Scanner Core Analyzer Experimental Reaction Control System Layered Light Armor Plating Improved Shield Generator Trap Reconfigurator Phasing AFG Thermic Laser Heavy Machine Gun Heavy Rocket Launcher GAL Module [Rating: 85] Favorites ----------- Power Nuclear Core Engine Makeshift Power Source Power Core Nuclear Core Reactor Zionite Light DM Reactor Propulsion Aluminum Leg Treads Light Treads Leg Aluminum Leg Wheel Wheel Hover Unit Cooled Airjet Flight Unit Improved VTOL Module Utility Experimental Sensor Array Device Experimental Sensor Array Storage Medium Storage Unit Processor Improved Signal Interpreter Hackware Hacking Suite Protection Improved Medium Armor Plating Weapon Light Assault Rifle Energy Gun Heavy EM Shotgun Ballistic Gun Light Assault Rifle Launcher Heavy Rocket Launcher Special Weapon Mining Laser Impact Weapon Power Maul Slashing Weapon Makeshift Axe Build | -11 -10 -10 -10 -9 -8 -7 -7 -7 -7 -7 ------- Run | Yrd Mat Min Exi Min Mat Fac Low Low Zio Dee Slots Evolved 6 | . . . . . 4 2 . . . . Power . | . . . . . . . . . . . Propulsion 2 | . . . . . 2 . . . . . Utility 4 | . . . . . 2 2 . . . . Weapon . | . . . . . . . . . . . Parts Attached 203 | 6 11 4 . 2 83 27 1 12 11 46 Power 16 | 1 2 . . . 6 4 . 1 . 2 Engine 7 | 1 2 . . . 2 1 . 1 . . Core 7 | . . . . . 4 3 . . . . Reactor 2 | . . . . . . . . . . 2 Propulsion 54 | 2 5 . . . 21 7 1 3 4 11 Treads 7 | 2 2 . . . 1 1 . . 1 . Leg 32 | . 2 . . . 19 4 1 2 3 1 Wheel 1 | . 1 . . . . . . . . . Hover 13 | . . . . . . 2 . 1 . 10 Flight 1 | . . . . . 1 . . . . . Utility 90 | 1 2 3 . . 41 14 . 5 4 20 Device 42 | . 1 2 . . 25 6 . 1 2 5 Storage 10 | 1 1 1 . . 1 2 . 1 1 2 Processor 6 | . . . . . 5 1 . . . . Hackware 1 | . . . . . . 1 . . . . Protection 31 | . . . . . 10 4 . 3 1 13 Artifact . | . . . . . . . . . . . Weapon 43 | 2 2 1 . 2 15 2 . 3 3 13 Energy Gun 13 | . . . . . 5 1 . . . 7 Energy Cannon . | . . . . . . . . . . . Ballistic Gun 10 | 2 2 1 . 1 2 . . 2 . . Ballistic Cannon . | . . . . . . . . . . . Launcher 2 | . . . . . . . . 1 . 1 Special Weapon 2 | . . . . . 2 . . . . . Impact Weapon 2 | . . . . . . 1 . . 1 . Slashing Weapon 14 | . . . . 1 6 . . . 2 5 Piercing Weapon . | . . . . . . . . . . . Special Melee Weapon . | . . . . . . . . . . . Unidentified Prototypes 19 | . . 1 . . 2 2 . . 1 13 Parts Lost 24 | . 1 . . . 2 5 . 2 . 14 Power 2 | . . . . . . 1 . 1 . . Propulsion 13 | . 1 . . . 1 3 . . . 8 Utility 9 | . . . . . 1 1 . 1 . 6 Weapon . | . . . . . . . . . . . Highest Loss Streak 8 | . 1 . . . 2 3 . 2 . 8 To Critical Strikes . | . . . . . . . . . . . Average Slot Usage (%) 91 | . 92 99 100 100 94 80 84 87 91 81 Engine 5 | . 14 14 14 14 1 . . 5 7 3 Core 3 | . . . . . 7 7 7 1 . . Treads 1 | . 22 . . . . . . . . . Leg 23 | . 3 28 28 28 35 16 7 14 22 9 Hover 2 | . . . . . . 2 14 7 . 12 Device 7 | . 7 13 14 14 6 6 7 6 7 6 Storage 9 | . 14 14 14 14 9 7 7 6 7 6 Processor 15 | . . . . . 17 22 23 23 22 11 Hackware 1 | . . . . . . 5 7 1 . . Protection 3 | . . . . . 1 2 . 5 7 10 Ballistic Gun 6 | . 28 28 28 15 . . . 3 6 . Impact Weapon 2 | . . . . . . 4 7 7 7 2 Slashing Weapon 4 | . . . . 12 8 2 . . . 7 Naked Turns . | . . . . . . . . . . . Heaviest Build 97 | 10 18 97 18 20 29 37 29 42 40 51 Greatest Support 70 | 40 40 20 20 20 60 60 50 50 70 70 Greatest Overweight (x) 16 | . 3 4 . . 1 3 . 1 . 16 Average Overweight (x) . | . . . . . . . . . . . Largest Inventory Capacity 25 | 8 10 25 10 10 10 15 15 15 15 15 Average Capacity 12 | 7 8 10 10 10 10 14 15 14 15 14 Most Carried 15 | 6 10 11 10 10 10 15 15 15 15 15 Average Carried 11 | 2 7 9 9 9 9 12 14 13 14 13 Final Capacity 15 | 8 10 10 10 10 10 15 15 15 15 5 Final Carried 15 | 6 10 10 10 10 9 15 15 15 14 5 Class Distribution -------------------- 40% | Scavenger-Mutant 29% | Mutant 15% | Derelict-Mutant 7% | Gladiator 3% | Commander-Mutant Dominant Class ---------------- Mutant | -10/Materials Scavenger-Mutant | -10/Mines Scavenger-Mutant | -10/Exiles Commander-Mutant | -9/Mines Scavenger-Mutant | -8/Materials Mutant | -7/Factory Mutant | -7/Lower Caves Mutant | -7/Lower Caves Derelict-Mutant | -7/Zion Derelict-Gladiator | -7/Deep Caves Resources | -11 -10 -10 -10 -9 -8 -7 -7 -7 -7 -7 ----------- Run | Yrd Mat Min Exi Min Mat Fac Low Low Zio Dee Matter Collected 2445 | 260 185 46 10 20 849 250 100 172 125 428 Remotely . | . . . . . . . . . . . Salvage Created 3404 | . 298 36 17 27 2132 532 . 177 . 185 Parts 188 | . 31 2 . 1 117 22 . 6 . 9 Haulers Intercepted 5 | . 1 . . . 4 . . . . . Recyclers Shooed . | . . . . . . . . . . . Parts Field Recycled . | . . . . . . . . . . . Retrieved Matter . | . . . . . . . . . . . Parts Self-Destructed 6 | . . . . . . . . 4 2 . Prevented 2 | . . . . . . . . 2 . . Kills | -11 -10 -10 -10 -9 -8 -7 -7 -7 -7 -7 ------- Run | Yrd Mat Min Exi Min Mat Fac Low Low Zio Dee Combat Hostiles Destroyed 67 | . 11 2 . . 33 11 . 5 . 5 Melee 40 | . . . . . 27 11 . . . 2 Guns 19 | . 11 2 . . 5 . . 1 . . AOE 6 | . . . . . . . . 3 . 3 Classes Destroyed 19 | . 3 . . 1 9 3 . 1 . 2 Worker 2 | . . . . . 2 . . . . . Builder 3 | . . . . . 2 1 . . . . Tunneler 1 | . . . . 1 . . . . . . Hauler 5 | . 1 . . . 4 . . . . . Recycler 3 | . . . . . 3 . . . . . Mechanic 1 | . . . . . . 1 . . . . Operator 1 | . . . . . . 1 . . . . Watcher 3 | . . . . . 2 1 . . . . Swarmer 22 | . 9 2 . . 5 6 . . . . Grunt 20 | . 2 . . . 13 1 . 4 . . Brawler 4 | . . . . . 3 1 . . . . Duelist 3 | . . . . . 2 1 . . . . Protector 1 | . . . . . 1 . . . . . Sentry 8 | . . . . . 7 1 . . . . Hunter 2 | . . . . . 2 . . . . . Programmer 1 | . . . . . . 1 . . . . Behemoth 1 | . . . . . . . . 1 . . Z-Light 4 | . . . . . . . . . . 4 Assembled 1 | . . . . . . . . . . 1 Best Kill Streak 5 | . 3 2 . 1 5 3 . 4 . 4 Combat Bots Only 5 | . 3 2 . . 5 3 . 4 . 4 Max Kills in Single Turn 2 | . 1 1 . 1 1 1 . 2 . 2 Gunslinging . | . . . . . . . . . . . Exploded 2 | . . . . . . . . 2 . 2 Melee 1 | . . . . . 1 1 . . . 1 Uniques/NPCs Destroyed 1 | . . . . . . . . . . 1 Z-Imprinter (-7/Deep Caves) Combat | -11 -10 -10 -10 -9 -8 -7 -7 -7 -7 -7 -------- Run | Yrd Mat Min Exi Min Mat Fac Low Low Zio Dee Hostile Shots Fired 483 | . 59 3 . . 167 118 . 63 . 73 Missed 118 | . 14 3 . . 40 23 . 19 . 19 Damage Taken 6963 | . 380 . . . 1935 1573 . 994 . 2081 Core 1274 | . 29 . . . 501 199 . 152 . 393 Absorbed by Shields . | . . . . . . . . . . . Redirected to Shielding 201 | . . . . . 11 58 . . . 132 Regen/Repaired (Parts) 11 | . . . . . 11 . . . . . Core Remaining (%) 65 | 100 . . . 88 8 . . . . . Volleys Fired 114 | . 41 3 5 . 47 . . 10 1 7 Largest 2 | . 2 2 2 . 1 . . 1 1 2 Hottest 133 | . 40 40 40 . 100 . . 39 30 133 Shots Fired 167 | . 82 6 10 . 47 . . 11 1 10 Gun 143 | . 82 6 10 . 30 . . 8 1 6 Cannon . | . . . . . . . . . . . Launcher 7 | . . . . . . . . 3 . 4 Special 17 | . . . . . 17 . . . . . Kinetic 109 | . 82 6 10 . 2 . . 8 1 . Thermal 20 | . . . . . 17 . . . . 3 Explosive 7 | . . . . . . . . 3 . 4 Electromagnetic 28 | . . . . . 28 . . . . . Phasic 3 | . . . . . . . . . . 3 Robot Hit Streak 9 | . 6 3 3 . 9 . . 5 . 3 Robot Miss Streak 7 | . 7 1 1 . 4 . . 1 . 2 Penetration Max . | . . . . . . . . . . . Secondary Targets 1 | . 1 . . . . . . . . . Max Gunslinging Chain 1 | . 1 . . . . . . . . . Shots Hit Robots 210 | . 40 4 5 1 94 37 . 13 . 16 Core Hits 104 | . 20 3 2 . 50 12 . 7 . 10 Critical Kills 1 | . 1 . . . . . . . . . Critical Parts Destroyed 7 | . . . 1 . . 4 . 2 . . Critical Strikes 22 | . 1 . 1 . 8 10 . 2 . . Destroy 2 | . 1 . 1 . . . . . . . Smash 6 | . . . . . . 4 . 2 . . Sever 14 | . . . . . 8 6 . . . . Melee Attacks 177 | . . . . 1 92 48 . 9 5 22 Impact 42 | . . . . . . 24 . 9 5 4 Slashing 135 | . . . . 1 92 24 . . . 18 Piercing . | . . . . . . . . . . . Sneak Attacks 18 | . . . . 1 13 4 . . . . Combat Hostiles 2 | . . . . . 1 1 . . . . Follow-up Attacks . | . . . . . . . . . . . Damage Inflicted 8748 | . 376 30 43 82 4535 1848 . 922 . 912 Guns 1189 | . 367 30 43 . 551 . . 130 . 68 Cannons . | . . . . . . . . . . . Explosions 1014 | . . . . . 88 . . 554 . 372 Melee 6536 | . . . . 82 3896 1848 . 238 . 472 Ramming 9 | . 9 . . . . . . . . . Kinetic 614 | . 367 30 43 . 44 . . 130 . . Thermal 123 | . . . . . 88 . . . . 35 Explosive 926 | . . . . . . . . 554 . 372 Electromagnetic 507 | . . . . . 507 . . . . . Impact 1235 | . . . . . . 952 . 238 . 45 Slashing 5301 | . . . . 82 3896 896 . . . 427 Piercing . | . . . . . . . . . . . Phasic 33 | . . . . . . . . . . 33 Highest Corruption 9 | . . . . . 9 7 7 7 7 . Average Corruption 4 | . . . . . 2 3 7 7 7 . Corruption Purged . | . . . . . . . . . . . Corruption Blocked . | . . . . . . . . . . . Effects 110 | . . . . . 47 17 12 26 8 . Message Errors 28 | . . . . . 10 4 4 7 3 . Matter Fused 26 | . . . . . 10 4 2 7 3 . Heat Flow Errors 17 | . . . . . 7 1 3 5 1 . Energy Discharges 14 | . . . . . 8 2 1 3 . . Parts Rejected 1 | . . . . . 1 . . . . . Data Loss (minor) 14 | . . . . . 4 5 2 2 1 . Data Loss (major) 6 | . . . . . 5 1 . . . . Misfires 1 | . . . . . . . . 1 . . Alerts 3 | . . . . . 2 . . 1 . . Overload Shots . | . . . . . . . . . . . Overflow Damage 878 | . . . . 42 300 432 . 84 . 20 Projectiles . | . . . . . . . . . . . Explosions . | . . . . . . . . . . . Melee 878 | . . . . 42 300 432 . 84 . 20 Knockbacks 4 | . . . . . . 3 . . . 1 Impact 4 | . . . . . . 3 . . . 1 Kinetic . | . . . . . . . . . . . Secondary . | . . . . . . . . . . . Self-Inflicted Damage 49 | . . . . . . . . . . 49 Shots 1 | . . . . . . . . . . 1 Rammed 1 | . 1 . . . . . . . . . Targets Rammed 1 | . 1 . . . . . . . . . Kicked . | . . . . . . . . . . . Crushed . | . . . . . . . . . . . Highest Temperature 358 | . 12 . . . 267 161 269 175 207 358 Average Temperature 72 | . 7 . . . 60 81 117 60 102 114 Received Heat Transfer 1548 | . 24 . . . 729 93 . 273 . 429 Effects 3 | . . . . . 1 . . . . 2 Energy Bleed 1 | . . . . . 1 . . . . . Interference 1 | . . . . . . . . . . 1 Short Circuit 1 | . . . . . . . . . . 1 Siege Activations . | . . . . . . . . . . . Robots Corrupted 1 | . . . . . 1 . . . . . Combat Hostiles 1 | . . . . . 1 . . . . . Parts Fried 8 | . . . . . 4 3 . 1 . . Impact Corruptions 17 | . . . . . . 14 . 2 . 1 Robots Melted . | . . . . . . . . . . . Combat Hostiles . | . . . . . . . . . . . Parts Melted 1 | . . 1 . . . . . . . . Heat Transferred 87 | . . . . . 50 . . . . 37 Parts Sabotaged . | . . . . . . . . . . . Parts Stolen . | . . . . . . . . . . . Parts Stripped . | . . . . . . . . . . . Power Chain Reactions 1 | . . . . . 1 . . . . . Missiles Intercepted . | . . . . . . . . . . . Alert | -11 -10 -10 -10 -9 -8 -7 -7 -7 -7 -7 ------- Run | Yrd Mat Min Exi Min Mat Fac Low Low Zio Dee Peak Influence 1012 | . 195 75 . 6 1012 654 . . . . Initial 459 | . . 75 . . 1 459 . . . . Average 265 | . 79 68 . . 284 511 . . . . Maximum Alert Level 3 | . . . . . 3 2 . . . . Low Security (%) 57 | 100 100 100 . 100 57 . . . . . Level 1 9 | . . . . . 15 3 . . . . Level 2 26 | . . . . . 15 96 . . . . Level 3 6 | . . . . . 11 . . . . . Level 4 . | . . . . . . . . . . . Level 5 . | . . . . . . . . . . . High Security . | . . . . . . . . . . . Max Security . | . . . . . . . . . . . Squads Dispatched 15 | . 2 . . . 10 3 . . . . Investigation 2 | . 1 . . . 1 . . . . . Extermination 1 | . . . . . . 1 . . . . Reinforcement 5 | . 1 . . . 3 1 . . . . Assault 5 | . . . . . 4 1 . . . . Garrison 2 | . . . . . 2 . . . . . Intercept . | . . . . . . . . . . . Searches Triggered . | . . . . . . . . . . . Construction Impeded . | . . . . . . . . . . . Haulers Reinforced . | . . . . . . . . . . . Active Scanning Responses . | . . . . . . . . . . . Cargo Convoy Interrupts . | . . . . . . . . . . . Stealth | -11 -10 -10 -10 -9 -8 -7 -7 -7 -7 -7 --------- Run | Yrd Mat Min Exi Min Mat Fac Low Low Zio Dee Distress Signals 4 | . . . . . 3 1 . . . . Communications Jammed . | . . . . . . . . . . . Distress Signals . | . . . . . . . . . . . Times Spotted 118 | . 19 2 . . 57 22 . 5 . 13 Peak Tracking Total 6 | . 5 2 . . 6 3 . 4 . 6 Tactical Retreats 16 | . 2 . . . 5 7 . . . 2 Traps | -11 -10 -10 -10 -9 -8 -7 -7 -7 -7 -7 ------- Run | Yrd Mat Min Exi Min Mat Fac Low Low Zio Dee Traps Triggered 8 | . 2 . . . 4 2 . . . . Indirectly . | . . . . . . . . . . . Trap Hack Attempts . | . . . . . . . . . . . Triggered . | . . . . . . . . . . . Disarmed . | . . . . . . . . . . . Reprogrammed . | . . . . . . . . . . . Reused 8 | . . . . . 8 . . . . . Traps Reconfigurated 12 | . . . . . 12 . . . . . Traps Extracted . | . . . . . . . . . . . Installed . | . . . . . . . . . . . Triggered 10 | . . . . . 10 . . . . . Machines | -11 -10 -10 -10 -9 -8 -7 -7 -7 -7 -7 ---------- Run | Yrd Mat Min Exi Min Mat Fac Low Low Zio Dee Machines Disabled 6 | . . . . . 3 1 . . . 2 Max in Single Turn 1 | . . . . . 1 1 . . . . Garrison Access 2 | . . . . . 1 1 . . . . Machines Repaired . | . . . . . . . . . . . Machines Dismantled . | . . . . . . . . . . . Machines Sabotaged . | . . . . . . . . . . . Overloaded Fab Kills . | . . . . . . . . . . . Hacking | -11 -10 -10 -10 -9 -8 -7 -7 -7 -7 -7 --------- Run | Yrd Mat Min Exi Min Mat Fac Low Low Zio Dee Machines Accessed 24 | . 4 . 5 . 13 2 . . . . Terminals 13 | . 4 . . . 8 1 . . . . Fabricators . | . . . . . . . . . . . Repair Stations 2 | . . . . . 2 . . . . . Recycling Units . | . . . . . . . . . . . Scanalyzers 2 | . . . . . 2 . . . . . Garrison Access 2 | . . . . . 1 1 . . . . Total Hacks 114 | . 9 . 50 . 52 3 . . . . Successful 90 | . 5 . 50 . 35 . . . . . Failed 24 | . 4 . . . 17 3 . . . . Catastrophic 4 | . 1 . . . 2 1 . . . . Database Lockouts . | . . . . . . . . . . . Manual 22 | . 4 . 6 . 9 2 . . 1 . Terminals 33 | . 9 . . . 22 2 . . . . Fabricators . | . . . . . . . . . . . Repair Stations 5 | . . . . . 5 . . . . . Recycling Units . | . . . . . . . . . . . Scanalyzers 23 | . . . . . 23 . . . . . Garrison Access 3 | . . . . . 2 1 . . . . Terminal Hacks 61 | . 3 . 50 . 8 . . . . . Record 49 | . . . 49 . . . . . . . Prototype ID Bank 4 | . . . . . 4 . . . . . Emergency Access Points 1 | . 1 . . . . . . . . . Locate Traps 2 | . 1 . . . 1 . . . . . Dispatch Records 2 | . 1 . . . 1 . . . . . Recall Investigation 1 | . . . . . 1 . . . . . Zone Layout 1 | . . . . . 1 . . . . . Derelict Proto ID Bank 1 | . . . 1 . . . . . . . Fabricator Hacks . | . . . . . . . . . . . Repair Station Hacks 2 | . . . . . 2 . . . . . Scan Component 1 | . . . . . 1 . . . . . Repair 1 | . . . . . 1 . . . . . Recycling Unit Hacks . | . . . . . . . . . . . Scanalyzer 22 | . . . . . 22 . . . . . Insert Component 10 | . . . . . 10 . . . . . Analyze 12 | . . . . . 12 . . . . . Garrison Access Hacks . | . . . . . . . . . . . Unauthorized Hacks 5 | . 2 . . . 3 . . . . . Terminals 4 | . 2 . . . 2 . . . . . Botnet 4 | . 2 . . . 2 . . . . . Fabricators . | . . . . . . . . . . . Repair Stations . | . . . . . . . . . . . Recycling Units . | . . . . . . . . . . . Scanalyzers . | . . . . . . . . . . . Garrison Access 1 | . . . . . 1 . . . . . Reprogram 1 | . . . . . 1 . . . . . Data Cores Recovered . | . . . . . . . . . . . Used . | . . . . . . . . . . . Hacking Detections 17 | . 3 . . . 12 2 . . . . Full Trace Events 1 | . . . . . 1 . . . . . Feedback Events . | . . . . . . . . . . . Feedback Blocked . | . . . . . . . . . . . Robot Schematics Acquired . | . . . . . . . . . . . Robots Built . | . . . . . . . . . . . Authchips . | . . . . . . . . . . . Time . | . . . . . . . . . . . Total Robot Build Rating . | . . . . . . . . . . . Part Schematics Acquired 7 | . . . . . 7 . . . . . Parts Built . | . . . . . . . . . . . Authchips . | . . . . . . . . . . . Time . | . . . . . . . . . . . Total Part Build Rating . | . . . . . . . . . . . Parts Repaired 1 | . . . . . 1 . . . . . Time 108 | . . . . . 108 . . . . . Parts Recycled . | . . . . . . . . . . . Recycled Matter . | . . . . . . . . . . . Retrieved Matter . | . . . . . . . . . . . Retrieved Components . | . . . . . . . . . . . Parts Scanalyzed 8 | . . . . . 8 . . . . . Part Schematics Acquired 7 | . . . . . 7 . . . . . Parts Damaged . | . . . . . . . . . . . Bothacking | -11 -10 -10 -10 -9 -8 -7 -7 -7 -7 -7 ------------ Run | Yrd Mat Min Exi Min Mat Fac Low Low Zio Dee Used RIF Installer . | . . . . . . . . . . . Robots Hacked . | . . . . . . . . . . . Non-combat . | . . . . . . . . . . . Combat . | . . . . . . . . . . . Robot Hacks Applied . | . . . . . . . . . . . Relay Couplers Released 4 | . . . . . 1 3 . . . . Machine Destruction 4 | . . . . . 1 3 . . . . Fabnet Peak Effective % . | . . . . . . . . . . . Robots Rewired 3 | . . . 3 . . . . . . . Allies Hacked . | . . . . . . . . . . . Hacks Repelled . | . . . . . . . . . . . Allies | -11 -10 -10 -10 -9 -8 -7 -7 -7 -7 -7 -------- Run | Yrd Mat Min Exi Min Mat Fac Low Low Zio Dee Total Allies 10 | . . 2 3 3 1 . . . . 1 Largest Group 6 | . . 2 3 6 6 . . . . 1 Highest-Rated Group 119 | . . 48 37 77 77 . . . . 119 Highest-Rated Ally 119 | . . 31 31 21 21 . . . . 119 Total Orders . | . . . . . . . . . . . Ally Attacks 58 | . . 6 . . 31 . . . . 21 Total Damage 3686 | . . 64 . . 583 . . . . 3039 Kills 19 | . . 1 . . 9 . . . . 9 Allies Corrupted . | . . . . . . . . . . . Allies Melted . | . . . . . . . . . . . Intel | -11 -10 -10 -10 -9 -8 -7 -7 -7 -7 -7 ------- Run | Yrd Mat Min Exi Min Mat Fac Low Low Zio Dee Robot Analysis Total . | . . . . . . . . . . . Derelict Logs Recovered 6 | . . 1 . 2 . . 2 . 1 . Drone Launches . | . . . . . . . . . . . Drone Recoveries . | . . . . . . . . . . . Exploration | -11 -10 -10 -10 -9 -8 -7 -7 -7 -7 -7 ------------- Run | Yrd Mat Min Exi Min Mat Fac Low Low Zio Dee Turns Passed 11886 | 85 654 546 836 531 3726 1290 559 923 1951 785 Spaces Moved 7526 | 48 345 432 663 426 1800 768 393 565 1353 733 Core 19 | 5 1 . . . . . . . . 13 Treads 284 | 43 241 . . . . . . . . . Legs 6653 | . 55 432 663 426 1800 767 393 554 1353 210 Wheels 48 | . 48 . . . . . . . . . Hover 522 | . . . . . . 1 . 11 . 510 Flight . | . . . . . . . . . . . Fastest Speed 24 | 50 95 120 120 120 120 120 140 56 140 24 Average Speed 125 | 148 145 121 120 120 123 131 140 138 140 75 Slowest Speed 850 | 160 200 400 120 120 190 250 140 140 140 850 Overloaded Moves . | . . . . . . . . . . . Propulsion Burnouts . | . . . . . . . . . . . Robots Hopped . | . . . . . . . . . . . Cave-ins Triggered . | . . . . . . . . . . . Exploration Rate (%) 67 | 4 71 95 92 88 89 11 70 59 86 72 Regions Visited 10 Branch Regions 7 Pre-discovered Areas 8 | . . 1 1 1 . . 1 . 4 . Known Exits Taken 5 | . . . . . 1 1 1 1 1 . Unknown Exits Taken 5 | 1 1 1 1 1 . . . . . . Scrap Searched 11 | . . 1 . 1 . . 6 1 2 . Spaces Dug 28 | . . . . . 21 2 . 2 3 . Terrain Destroyed 104 | . . . . . 22 2 . 55 3 22 Melee 13 | . . . . . 6 2 . 2 3 . Projectile 16 | . . . . . 16 . . . . . AOE 75 | . . . . . . . . 53 . 22 Terrain Rammed . | . . . . . . . . . . . Walls Destroyed . | . . . . . . . . . . . Machines Disabled . | . . . . . . . . . . . Actions | -11 -10 -10 -10 -9 -8 -7 -7 -7 -7 -7 --------- Run | Yrd Mat Min Exi Min Mat Fac Low Low Zio Dee Total 9497 | 59 436 450 696 447 3047 949 405 674 1406 928 Wait 1177 | . 12 3 5 9 953 69 . 60 3 63 Move 7516 | 47 344 431 662 425 1799 767 392 564 1352 733 Hop . | . . . . . . . . . . . Pick Up 117 | 6 13 4 2 4 20 16 5 14 11 22 Fast Attach 104 | 6 5 2 . 2 31 15 1 4 7 31 Attach 28 | . 1 1 . . 8 5 . 4 . 9 Detach 12 | . . . . . 5 2 1 . 2 2 Swap 71 | . 5 1 . . 44 7 . 4 4 6 Drop 164 | . 14 5 2 6 48 20 6 5 21 37 Fire 114 | . 41 3 5 . 47 . . 10 1 7 Melee 173 | . . . . 1 92 48 . 9 5 18 Ram . | . . . . . . . . . . . Kick . | . . . . . . . . . . . Crush 1 | . 1 . . . . . . . . . Escape Stasis . | . . . . . . . . . . . Rewire 20 | . . . 20 . . . . . . . Trap . | . . . . . . . . . . . Miscellaneous . | . . . . . . . . . . . Route ------- -11/Scrapyard -10/Materials (discovered 4 exits: [*Mat x2] / [*Min x2]) -10/Mines (discovered 2 exits: [*Mat] / *Exi) -10/Exiles (discovered 2 exits: [*Min x2]) -9/Mines -8/Materials (discovered 2 exits: *Fac x2) -7/Factory (discovered 3 exits: *Fac / [*Sto] / *Low) -7/Lower Caves -7/Lower Caves -7/Zion (discovered 2 exits: *Dee / *Pro) -7/Deep Caves (discovered 1 exit: [*Pro]) History --------- Turn | Location | Event 2 | -11/Scrapyard | Met Revision 17 5 | -11/Scrapyard | Discovered new exit (range 15) 86 | -11/Scrapyard | Entered Materials 316 | -10/Materials | Build established: Mutant 340 | -10/Materials | Discovered new exit (range 10) 351 | -10/Materials | Discovered new exit (range 11) 506 | -10/Materials | Discovered new exit (range 16) 605 | -10/Materials | Discovered new exit (range 15) 740 | -10/Materials | Entered Mines 741 | -10/Mines | Learned location of Storage (-7) 800 | -10/Mines | Discovered new exit (range 10) 903 | -10/Mines | Found a damaged Exp. Sensor Array with a note attached 906 | -10/Mines | Found Prototype Device 906 | -10/Mines | Identified Exp. Sensor Array 1003 | -10/Mines | Build established: Scavenger-Mutant 1108 | -10/Mines | Learned Materials terminal intel 1277 | -10/Mines | Deemed a non-threat by the Exiles lab entrance 1278 | -10/Mines | Discovered new exit (range 5) 1286 | -10/Mines | Entered Exiles 1286 | -10/Exiles | Found Exiles lab destroyed 1286 | -10/Exiles | Accompanied by 1 ally 1304 | -10/Exiles | Discovered new exit (range 15) 1316 | -10/Exiles | Led the pair of lost Derelicts to a safe place 1609 | -10/Exiles | Learned location of Zion (-7) 1864 | -10/Exiles | Discovered new exit (range 12) 1999 | -10/Exiles | Opened EX-Vault 2008 | -10/Exiles | Found Trap Reconfigurator 2122 | -10/Exiles | Entered Mines 2122 | -9/Mines | Accompanied by 3 allies 2154 | -9/Mines | A weapon hastily lodged in a ceiling crevice suddenly fell to the ground 2184 | -9/Mines | Learned Materials stockpile data 2194 | -9/Mines | Received a Rocket Launcher from a helpful Derelict 2263 | -9/Mines | Found a hidden stash of uninstalled traps 2357 | -9/Mines | Assisted by bots powering up and referring to "LRC-V3" 2642 | -9/Mines | Discovered new exit (range 5) 2652 | -9/Mines | Build established: Commander-Mutant 2653 | -9/Mines | Entered Materials 2653 | -8/Materials | Accompanied by 6 allies 2653 | -8/Materials | Evolved 4 slots: Propulsion x2, Utility x2 2655 | -8/Materials | Loaded intel: 12 terminal locations 2995 | -8/Materials | Lost 3 allies 3139 | -8/Materials | Build established: Scavenger-Mutant 3251 | -8/Materials | Repaired Exp. Sensor Array? 3435 | -8/Materials | Discovered new exit (range 10) 3445 | -8/Materials | Identified exit to Factory 4992 | -8/Materials | Discovered exit to Factory (range 13) 5208 | -8/Materials | Garrison activated, responded to threat 5453 | -8/Materials | First assault squad dispatched 5515 | -8/Materials | Core integrity fell below 50% 6092 | -8/Materials | Core integrity fell below 20% 6379 | -8/Materials | Entered Factory 6379 | -7/Factory | Evolved 2 slots: Utility x2 6385 | -7/Factory | Discovered new exit (range 11) 6419 | -7/Factory | Build established: Gladiator 6448 | -7/Factory | Discovered new exit (range 8) 6457 | -7/Factory | Identified exit to Factory 6592 | -7/Factory | Lost 3 parts (1p1n1u) 7189 | -7/Factory | Build established: Mutant 7391 | -7/Factory | Discovered new exit (range 4) 7395 | -7/Factory | Identified exit to Lower Caves 7669 | -7/Factory | Entered Lower Caves 7836 | -7/Lower Caves | Identified exit to Lower Caves 7973 | -7/Lower Caves | Encountered a Warlord checkpoint 8228 | -7/Lower Caves | Entered another Lower Caves area 8336 | -7/Lower Caves | Spotted B-75 Beast 8427 | -7/Lower Caves | Core integrity fell below 50% 8438 | -7/Lower Caves | Destroyed B-75 Beast 9137 | -7/Lower Caves | Discovered new exit (range 7) 9149 | -7/Lower Caves | Identified exit to Zion 9151 | -7/Lower Caves | Entered Zion 9309 | -7/Zion | Discovered new exit (range 10) 9321 | -7/Zion | Identified exit to Proximity Caves 9391 | -7/Zion | System corruption cleaned by Quarantine Array 9427 | -7/Zion | Learned location of Warlord (-5) 9522 | -7/Zion | Received a visual enhancement algorithm 9559 | -7/Zion | Build established: Derelict-Mutant 9829 | -7/Zion | Found Prototype Device 9829 | -7/Zion | Identified Phasing AFG 9938 | -7/Zion | Found GAL Module 10092 | -7/Zion | Learned location of 1 exit from Lower Caves 10274 | -7/Zion | Learned location of Extension (-6) 10713 | -7/Zion | Discovered new exit (range 4) 10716 | -7/Zion | Saw the warning signs outside the Deep Caves entrance 10718 | -7/Zion | Identified exit to Deep Caves 11102 | -7/Zion | Entered Deep Caves 11104 | -7/Deep Caves | Met 5H-AD0 11270 | -7/Deep Caves | Z-Facility disabled 11360 | -7/Deep Caves | Attacked by Z-Imprinter 11380 | -7/Deep Caves | Allies destroyed Z-Imprinter 11388 | -7/Deep Caves | Build established: Derelict-Gladiator 11388 | -7/Deep Caves | Found Prototype Protection 11388 | -7/Deep Caves | Identified Zio. Weapon Casing 11444 | -7/Deep Caves | Found Prototype Device 11444 | -7/Deep Caves | Identified Zio. Metafield Generator 11607 | -7/Deep Caves | Lost 8 parts (5n3u) 11634 | -7/Deep Caves | Found Prototype Protection 11634 | -7/Deep Caves | Identified Zio. Heavy Carapace 11638 | -7/Deep Caves | Found Zio. Heavy Carapace 11663 | -7/Deep Caves | Found Zio. Heavy Carapace 11674 | -7/Deep Caves | Found Zio. Weapon Casing 11737 | -7/Deep Caves | Discovered new exit (range 7) 11748 | -7/Deep Caves | Found Surveybot 24 Chip 11749 | -7/Deep Caves | Found Unknown Device 11810 | -7/Deep Caves | Spotted as-84736 11861 | -7/Deep Caves | Core integrity fell below 20% 11887 | -7/Deep Caves | Destroyed by as-84736 with Assembled Focal Cannon Last Messages --------------- 11745_ Surveybot 24 destroyed. 11747_ Dropped Zio. Heavy Carapace. 11748_ Acquired Surveybot 24 Chip. 11749_ Acquired Unknown Device. 11750_ Acquired 14 matter. 11759_ as-35602 destroyed. 11761_ Acquired 10 matter. 11771_ Dropped Unknown Device. 11772_ Dropped Surveybot 24 Chip. 11778_ Acquired Zio. Heavy Carapace. 11804_ Dropped Exp. Sensor Array. 11804_ Dropped Zio. Metafield Generator. 11806_ Acquired Exp. Sensor Array. 11807_ Acquired Zio. Metafield Generator. 11812_ as-84736: "DSI9AT1D G8OHIBQ29FWG 26R186 QD12WHW8W33 TDK1 81FTS" 11814_ Zio. Glidesys I destroyed. 11823_ Dropped Zio. Glidesys I. 11857_ Zio. Heavy Carapace destroyed. 11882_ Dropped Lrg. Storage Unit. 11883_ Acquired Zio. Glidesys I. Map ----- +----------------------------------------------------+ | ?????????????????????# ### ###### #### | | ?????????????????????# # | | ?????????????????????# # | | ????????? ???????????## ## ### ## | | ??????? ???????????## ## #?#### ####? | | ??????? ???????????## ### #????## ####???? | | ?????? ???##???????# #?# #?????# #??????? | | ?????? ??# ???????# ### #?????## ##??????? | | ????? ### ???????# ## ##?????####???????? | | ????? # ???????# ###???????????? | | ????? ] #??????#### ##???????? | | ???? * ?????????## #???????? | | ???? ??????????# ##??????? | | ??? * * #????###?## #??????? | | ??? = = * ##???# ### ###?????? | | ??? #???# #???? ## | | ??? * #???# #??????# | | ??? #???# ######## #?????? | | ??? = ! #???# ##????????#??????? ? | | ??? = !* #??## #??????????????????? | | ?? #??# ##??????????????????? | | ?? !! ! #??# ##???????????????????? | | ?? [ ##?##& ##???????????????????? | | ? * #??#=!! ##??????????????????? | | ? [ * #??# =! ##?????????????????? | | [ * #??##@! #?????????????????? | | * #####!G ##????????????????? | | [ ;#???????????????? | | ?" #???????????????? | | ???????????? | | ? "######## ?????????? | | ? ##???????######### ??????????? | | ?? ##????????????????????????????? | | ?? # # #?????????????????????????????? | | ?? #### ## ## ##?????????????????????????????? | | ??? #????# ?# ?###??????????????????????????????? | | ??? ??????#??# ??????????????????????????????????? | | ??????????????#??????????????????????????????????? | | | | | | | | | | | | | | | | | | | | | | | | | +----------------------------------------------------+ Best States ------------- Heat Dissipation 60 Energy Generation 27 Energy Capacity 700 Matter Stores 300 Matter Capacity 300 Sight Range 16 Robot Scan Range 20 Terrain Scan Range 16 Terrain Scan Density 210 Armor Coverage 2400 Utility Shielding 66 Weapon Shielding 100 Evasion (%) 66 Melee Accuracy 5 Recoil Reduction 2 Offensive Hacking 10 Authchip Count 1 Item Schematics ----------------- Exp. Sensor Array | -8/Materials | Scanalyzed Adv. Targeting Computer | -8/Materials | Scanalyzed Hacking Suite | -8/Materials | Scanalyzed Imp. Terrain Scanner | -8/Materials | Scanalyzed Imp. Utility Shielding | -8/Materials | Scanalyzed Melee Analysis Suite | -8/Materials | Scanalyzed Greatsword | -8/Materials | Scanalyzed Robot Schematics ------------------ None Fabricated ------------ Nothing Alien Tech Used ----------------- None Achievements -------------- None Challenges ------------ None Game ------ Seed CannonArmorDeconstructor Manual? 0 Play Time 01:53:22 Cumulative 295.1 hours Start 2023.12.20 @ 23:55:59 End 2023.12.21 @ 13:19:17 Sessions 7 Manual Loads 0 Difficulty Rogue Special Mode None Game No. 65 Rogue 49 Adventurer 10 Explorer 6 Win Type - Total 24 Types 9/0/4/3/0/6/2/0/0 Lore% 65 Gallery% 75 Achievement% 72 Wizard Run 0 Options --------- ASCII 0 Keyboard 0 Movement Numpad Keybinds 0 Fullscreen 1 Font 24/Smallcaps Map View 76x50 Zoom Use 0% Tactical HUD 1 Map Filters NONE Filters NONE Steam 1 RUN: aa9c442d-77f8-46e6-9742-89a0454543e8